[Event "Eurasia Open Cup 2019"]
[Site "Ekaterinburg"]
[Date "2019.08.01"]
[Round "2.41"]
[White "Abramov, Ilya"]
[Black "Ovchinnikov, Vsevolod"]
[Result "0-1"]
[ECO "E71"]
[WhiteElo "2065"]
[BlackElo "2346"]
[Annotator "NA"]
[PlyCount "150"]
[EventDate "2019.07.31"]
[EventType "swiss"]
[EventCountry "RUS"]
[SourceTitle "playchess.com"]
[Source "ChessBase"]
[SourceQuality "1"]
[TimeControl "5400+30"]

1. d4 {[%emt 0:00:00]} Nf6 {[%emt 0:00:04]} 2. c4 {[%emt 0:00:05]} g6 {[%emt 0:00:00]} 3. Nc3 {[%emt 0:00:15]} Bg7 {[%emt 0:00:11]} 4. e4 {[%emt 0:00:05]} d6 {[%emt 0:00:05]} 5. h3 {[%emt 0:01:20]} O-O {[%emt 0:00:20]} 6. Bg5 {[%emt 0:00:10]} c5 {[%emt 0:04:47]} 7. d5 {[%emt 0:00:40]} b5 {[%emt 0:07:22]} 8. cxb5 {[%emt 0:00:41]} a6 {[%emt 0:00:00]} 9. a4 {[%emt 0:01:06]} Qa5 {[%emt 0:07:38]} 10. Bd2 {[%emt 0:02:57]} Qb4 {[%emt 0:08:37]} 11. Qc2 {[%emt 0:04:01]} axb5 {[%emt 0:07:05]} 12. Bxb5 {[%emt 0:00:15]} Ba6 {[%emt 0:00:20]} 13. f3 {[%emt 0:18:12]} c4 {[%emt 0:05:11]} 14. Nge2 {[%emt 0:06:55]} Nfd7 {[%emt 0:11:26]} 15. O-O {[%emt 0:06:25]} Nc5 {[%emt 0:06:36]} 16. Ra3 {[%emt 0:11:56]} Bxb5 {[%emt 0:18:12]} 17. Nd1 {[%emt 0:00:36]} Qb3 {[%emt 0:00:36]} 18. Qb1 {[%emt 0:05:43]} c3 {[%emt 0:06:38]} 19. Rxb3 {[%emt 0:00:44]} Nxb3 {[%emt 0:00:04]} 20. Bxc3 {[%emt 0:01:25]} Bxe2 {[%emt 0:03:40]} 21. Bxg7 {[%emt 0:01:44]} Kxg7 {[%emt 0:00:33]} 22. Re1 {[%emt 0:01:35]} Bxd1 {[%emt 0:00:14]} 23. Qxd1 {[%emt 0:04:43]} Nc5 {[%emt 0:00:15]} 24. a5 {[%emt 0:00:00]} Nba6 {[%emt 0:06:35]} 25. e5 {[%emt 0:02:51]} Rab8 {[%emt 0:05:31]} 26. exd6 {[%emt 0:00:36]} exd6 {[%emt 0:00:30]} 27. Qd4+ {[%emt 0:00:00]} Kg8 {[%emt 0:00:18]} 28. Re7 {[%emt 0:03:37]} Nb4 {[%emt 0:00:26]} 29. h4 {[%emt 0:02:28]} h5 {[%emt 0:00:46]} 30. f4 {[%emt 0:00:46]} Nbd3 {[%emt 0:00:30]} 31. Qf6 {[%emt 0:00:02]} Rxb2 {[%emt 0:00:02]} 32. Qxd6 {[%emt 0:00:02]} Nb7 {[%emt 0:00:02]} 33. Qa3 {[%emt 0:00:02]} Rb1+ {[%emt 0:00:02]} 34. Kh2 {[%emt 0:05:15]} Ndc5 {[%emt 0:00:40]} 35. f5 {[%emt 0:01:00]} gxf5 {[%emt 0:00:29]} 36. a6 {[%emt 0:00:37]} Rb3 {[%emt 0:00:38]} 37. Qa1 {[%emt 0:02:02]} Nd6 {[%emt 0:00:03]} 38. a7 {[%emt 0:00:02]} Ra8 {[%emt 0:01:00]} 39. Qc1 {[%emt 0:02:58]} Ncb7 {[%emt 0:00:31]} 40. Qg5+ {[%emt 0:00:33]} Kf8 {[%emt 0:00:26]} 41. Rc7 {[%emt 0:00:52]} Rxa7 {[%emt 0:00:02]} 42. Qxh5 {[%emt 0:02:33]} Kg8 {[%emt 0:00:00]} 43. Qg5+ {[%emt 0:00:41]} Kh7 {[%emt 0:01:28]} 44. Qh5+ {[%emt 0:04:25]} Kg7 {[%emt 0:00:00]} 45. Qg5+ {[%emt 0:00:09]} Kh7 {[%emt 0:00:59]} 46. h5 {[%emt 0:00:06]} Ra4 {[%emt 0:00:33]} 47. Qg6+ {[%emt 0:00:29]} Kh8 {[%emt 0:00:27]} 48. Qh6+ {[%emt 0:00:22]} Kg8 {[%emt 0:00:09]} 49. Qg5+ {[%emt 0:00:04]} Kh7 {[%emt 0:00:02]} 50. Qg6+ {[%emt 0:00:59]} Kh8 {[%emt 0:01:27]} 51. Qf6+ {[%emt 0:00:19]} Kg8 {[%emt 0:00:02]} 52. Rc2 {[%emt 0:00:12]} Kh7 {[%emt 0:00:02]} 53. Re2 {[%emt 0:00:01]} Rbb4 {[%emt 0:00:28]} 54. Re3 {[%emt 0:00:52]} Rh4+ {[%emt 0:00:01]} 55. Rh3 {[%emt 0:01:45]} Rhg4 {[%emt 0:00:12]} 56. Qe5 {[%emt 0:00:21]} Rae4 {[%emt 0:01:10]} 57. Qb2 {[%emt 0:00:31]} Na5 {[%emt 0:01:02]} 58. Qf6 {[%emt 0:01:27]} Re2 {[%emt 0:00:19]} 59. Rc3 {[%emt 0:00:16]} Rexg2+ {[%emt 0:00:36]} 60. Kh1 {[%emt 0:00:57]} Nac4 {[%emt 0:00:32]} 61. Rxc4 {[%emt 0:00:15]} Nxc4 {[%emt 0:01:02]} 62. Qxf7+ {[%emt 0:00:35]} Kh6 {[%emt 0:00:34]} 63. Qf6+ {[%emt 0:00:39]} Kxh5 {[%emt 0:00:27]} 64. Qxf5+ {[%emt 0:00:04]} Kh4 {[%emt 0:00:32]} 65. Qh7+ {[%emt 0:00:47]} Kg5 {[%emt 0:00:27]} 66. Qg7+ {[%emt 0:00:05]} Kf5 {[%emt 0:00:27]} 67. Qf7+ {[%emt 0:00:33]} Ke4 {[%emt 0:00:08]} 68. Qe8+ {[%emt 0:00:07]} Kd3 {[%emt 0:00:56]} 69. Qe1 {[%emt 0:01:07]} Nd2 {[%emt 0:00:20]} 70. Qa1 {[%emt 0:00:24]} Rg6 {[%emt 0:00:09]} 71. d6 {[%emt 0:00:20]} R2g4 {[%emt 0:00:56]} 72. Qa3+ {[%emt 0:00:57]} Ke2 {[%emt 0:00:36]} 73. Qa6+ {[%emt 0:00:11]} Ke1 {[%emt 0:00:32]} 74. Qa1+ {[%emt 0:00:42]} Kf2 {[%emt 0:00:31]} 75. Qh8 {[%emt 0:00:19]} Rg1+ {[%emt 0:00:29]} 0-1

[Event "Eurasia Open Cup 2019"]
[Site "Ekaterinburg"]
[Date "2019.08.01"]
[Round "2.42"]
[White "Klukin, Kirill"]
[Black "Vinokur, Yuliya"]
[Result "1/2-1/2"]
[ECO "A47"]
[WhiteElo "2325"]
[BlackElo "2013"]
[Annotator "NA"]
[PlyCount "120"]
[EventDate "2019.07.31"]
[EventType "swiss"]
[EventCountry "RUS"]
[SourceTitle "playchess.com"]
[Source "ChessBase"]
[SourceQuality "1"]
[TimeControl "5400+30"]

1. d4 {[%emt 0:00:00]} Nf6 {[%emt 0:00:19]} 2. Nf3 {[%emt 0:00:10]} c5 {[%emt 0:00:30]} 3. e3 {[%emt 0:04:32]} b6 {[%emt 0:03:36]} 4. Bd3 {[%emt 0:00:05]} Bb7 {[%emt 0:00:35]} 5. O-O {[%emt 0:00:05]} g6 {[%emt 0:00:41]} 6. c4 {[%emt 0:01:25]} cxd4 {[%emt 0:01:30]} 7. exd4 {[%emt 0:01:15]} Bg7 {[%emt 0:02:54]} 8. d5 {[%emt 0:01:55]} d6 {[%emt 0:03:30]} 9. Nc3 {[%emt 0:00:27]} O-O {[%emt 0:01:13]} 10. Re1 {[%emt 0:00:12]} Nbd7 {[%emt 0:00:26]} 11. Rb1 {[%emt 0:01:36]} Rc8 {[%emt 0:06:04]} 12. Bf1 {[%emt 0:04:09]} Ng4 {[%emt 0:02:30]} 13. Nd4 {[%emt 0:01:30]} Nge5 {[%emt 0:00:05]} 14. b3 {[%emt 0:03:02]} Nc5 {[%emt 0:02:43]} 15. Be3 {[%emt 0:05:46]} a5 {[%emt 0:02:12]} 16. f4 {[%emt 0:03:26]} Ned7 {[%emt 0:02:05]} 17. Bf2 {[%emt 0:12:13]} Re8 {[%emt 0:02:42]} 18. a3 {[%emt 0:00:30]} Nf6 {[%emt 0:00:39]} 19. b4 {[%emt 0:04:04]} axb4 {[%emt 0:02:58]} 20. axb4 {[%emt 0:08:36]} Ncd7 {[%emt 0:03:25]} 21. Ncb5 {[%emt 0:01:36]} Nf8 {[%emt 0:00:05]} 22. Na7 {[%emt 0:00:05]} Ra8 {[%emt 0:02:10]} 23. Ndc6 {[%emt 0:05:39]} Bxc6 {[%emt 0:01:02]} 24. Nxc6 {[%emt 0:16:16]} Qc7 {[%emt 0:05:52]} 25. Qf3 {[%emt 0:02:19]} e6 {[%emt 0:03:04]} 26. Nd4 {[%emt 0:00:11]} exd5 {[%emt 0:00:05]} 27. cxd5 {[%emt 0:03:42]} Rxe1 {[%emt 0:02:26]} 28. Rxe1 {[%emt 0:02:05]} Ra2 {[%emt 0:05:11]} 29. Nb5 {[%emt 0:00:19]} Qd7 {[%emt 0:00:51]} 30. Qb3 {[%emt 0:00:10]} Rd2 {[%emt 0:00:09]} 31. Rd1 {[%emt 0:04:57]} Rxd1 {[%emt 0:07:24]} 32. Qxd1 {[%emt 0:12:02]} Qf5 {[%emt 0:04:11]} 33. Nxd6 {[%emt 0:01:41]} Qxf4 {[%emt 0:01:27]} 34. Bg3 {[%emt 0:00:07]} Qxb4 {[%emt 0:00:06]} 35. Qf3 {[%emt 0:00:53]} N8d7 {[%emt 0:00:02]} 36. Kh1 {[%emt 0:00:01]} Bf8 {[%emt 0:00:01]} 37. Nc4 {[%emt 0:00:02]} Bc5 {[%emt 0:00:02]} 38. h3 {[%emt 0:00:01]} b5 {[%emt 0:00:02]} 39. Ne5 {[%emt 0:00:02]} Qd4 {[%emt 0:00:04]} 40. Bh2 {[%emt 0:01:26]} b4 {[%emt 0:05:02]} 41. Nc6 {[%emt 0:01:12]} Qxd5 {[%emt 0:01:14]} 42. Qxd5 {[%emt 0:00:46]} Nxd5 {[%emt 0:01:19]} 43. Bc4 {[%emt 0:00:30]} N7b6 {[%emt 0:00:02]} 44. Bb3 {[%emt 0:00:03]} Kg7 {[%emt 0:00:01]} 45. Ne5 {[%emt 0:00:02]} f6 {[%emt 0:00:26]} 46. Nd3 {[%emt 0:01:25]} Bd4 {[%emt 0:01:07]} 47. Bd6 {[%emt 0:00:30]} Bc3 {[%emt 0:00:34]} 48. g4 {[%emt 0:00:30]} g5 {[%emt 0:00:58]} 49. Kg2 {[%emt 0:00:30]} Kg6 {[%emt 0:01:00]} 50. Kf3 {[%emt 0:00:30]} f5 {[%emt 0:00:51]} 51. Bc2 {[%emt 0:00:19]} Nc4 {[%emt 0:00:03]} 52. Nxb4 {[%emt 0:00:04]} Bxb4 {[%emt 0:00:51]} 53. Bxf5+ {[%emt 0:00:02]} Kf6 {[%emt 0:00:24]} 54. Bxb4 {[%emt 0:00:25]} Nxb4 {[%emt 0:00:12]} 55. Bxh7 {[%emt 0:00:08]} Nd5 {[%emt 0:00:34]} 56. Bg8 {[%emt 0:00:05]} Ke5 {[%emt 0:00:05]} 57. Kg3 {[%emt 0:00:13]} Nce3 {[%emt 0:01:09]} 58. Bxd5 {[%emt 0:00:46]} Kxd5 {[%emt 0:00:37]} 59. h4 {[%emt 0:00:12]} gxh4+ {[%emt 0:00:28]} 60. Kxh4 {[%emt 0:00:19]} Ke5 {[%emt 0:00:29]} 1/2-1/2

[Event "Eurasia Open Cup 2019"]
[Site "Ekaterinburg"]
[Date "2019.08.01"]
[Round "2.43"]
[White "Kirillov, Anton"]
[Black "Pozin, Sergey"]
[Result "0-1"]
[ECO "B60"]
[WhiteElo "1855"]
[BlackElo "2299"]
[Annotator "NA"]
[PlyCount "66"]
[EventDate "2019.07.31"]
[EventType "swiss"]
[EventCountry "RUS"]
[SourceTitle "playchess.com"]
[Source "ChessBase"]
[SourceQuality "1"]
[TimeControl "5400+30"]

1. e4 {[%emt 0:00:00]} c5 {[%emt 0:00:48]} 2. Nf3 {[%emt 0:00:00]} d6 {[%emt 0:00:38]} 3. d4 {[%emt 0:00:00]} cxd4 {[%emt 0:00:01]} 4. Nxd4 {[%emt 0:00:00]} Nf6 {[%emt 0:00:07]} 5. Nc3 {[%emt 0:00:00]} Nc6 {[%emt 0:00:21]} 6. Bg5 {[%emt 0:00:00]} Bd7 {[%emt 0:00:33]} 7. f4 {[%emt 0:00:07]} e6 {[%emt 0:01:29]} 8. Qd2 {[%emt 0:00:14]} h6 {[%emt 0:00:19]} 9. Bxf6 {[%emt 0:00:47]} Qxf6 {[%emt 0:00:06]} 10. Ndb5 {[%emt 0:01:31]} O-O-O {[%emt 0:01:01]} 11. O-O-O {[%emt 0:01:10]} a6 {[%emt 0:04:33]} 12. Na3 {[%emt 0:08:46]} d5 {[%emt 0:05:02]} 13. e5 {[%emt 0:12:51]} Qe7 {[%emt 0:00:04]} 14. Ne2 {[%emt 0:01:25]} f6 {[%emt 0:06:39]} 15. Nd4 {[%emt 0:10:10]} fxe5 {[%emt 0:01:13]} 16. Nxc6 {[%emt 0:00:06]} Bxc6 {[%emt 0:00:07]} 17. fxe5 {[%emt 0:00:04]} Qc7 {[%emt 0:01:49]} 18. Nb1 {[%emt 0:03:48]} Qxe5 {[%emt 0:00:51]} 19. Be2 {[%emt 0:06:01]} Bc5 {[%emt 0:01:41]} 20. Qe1 {[%emt 0:02:03]} Rhf8 {[%emt 0:03:21]} 21. Bf3 {[%emt 0:02:38]} Qg5+ {[%emt 0:04:09]} 22. Nd2 {[%emt 0:00:08]} e5 {[%emt 0:00:13]} 23. h4 {[%emt 0:05:53]} Qe3 {[%emt 0:02:47]} 24. Rh3 {[%emt 0:01:32]} Qxe1 {[%emt 0:00:15]} 25. Rxe1 {[%emt 0:00:01]} e4 {[%emt 0:02:38]} 26. Bg4+ {[%emt 0:00:39]} Kb8 {[%emt 0:01:24]} 27. c4 {[%emt 0:00:56]} Bf2 {[%emt 0:00:01]} 28. Re2 {[%emt 0:03:35]} d4 {[%emt 0:07:36]} 29. Nxe4 {[%emt 0:00:22]} Be3+ {[%emt 0:02:55]} 30. Rhxe3 {[%emt 0:02:46]} dxe3 {[%emt 0:00:13]} 31. Ng3 {[%emt 0:00:04]} Rf4 {[%emt 0:00:07]} 32. Be6 {[%emt 0:00:33]} Re8 {[%emt 0:07:30]} 33. Rxe3 {[%emt 0:00:52]} Rf6 {[%emt 0:02:47]} 0-1

[Event "Eurasia Open Cup 2019"]
[Site "Ekaterinburg"]
[Date "2019.08.01"]
[Round "2.44"]
[White "Inozemtsev, Sergei"]
[Black "Sargsyan, Alina"]
[Result "1/2-1/2"]
[ECO "C02"]
[WhiteElo "2295"]
[BlackElo "1298"]
[Annotator "NA"]
[PlyCount "51"]
[EventDate "2019.07.31"]
[EventType "swiss"]
[EventCountry "RUS"]
[SourceTitle "playchess.com"]
[Source "ChessBase"]
[SourceQuality "1"]
[TimeControl "5400+30"]

1. e4 {[%emt 0:13:00]} e6 {[%emt 0:00:00]} 2. d4 {[%emt 0:00:38]} d5 {[%emt 0:00:00]} 3. e5 {[%emt 0:00:00]} Nd7 {[%emt 0:00:00]} 4. Nf3 {[%emt 0:00:19]} a6 {[%emt 0:00:00]} 5. Bd3 {[%emt 0:00:43]} c5 {[%emt 0:00:07]} 6. c3 {[%emt 0:00:07]} Ne7 {[%emt 0:00:56]} 7. O-O {[%emt 0:00:28]} Nc6 {[%emt 0:00:29]} 8. Qe2 {[%emt 0:04:05]} b5 {[%emt 0:01:43]} 9. a3 {[%emt 0:01:16]} b4 {[%emt 0:02:34]} 10. dxc5 {[%emt 0:03:24]} bxa3 {[%emt 0:01:55]} 11. b4 {[%emt 0:00:00]} a2 {[%emt 0:01:41]} 12. Rxa2 {[%emt 0:00:00]} g6 {[%emt 0:00:01]} 13. Bf4 {[%emt 0:02:27]} Bg7 {[%emt 0:00:29]} 14. Re1 {[%emt 0:01:18]} h6 {[%emt 0:00:09]} 15. h4 {[%emt 0:00:18]} d4 {[%emt 0:03:24]} 16. b5 {[%emt 0:01:01]} Ne7 {[%emt 0:01:29]} 17. cxd4 {[%emt 0:00:00]} Rb8 {[%emt 0:01:51]} 18. bxa6 {[%emt 0:01:09]} Nd5 {[%emt 0:00:27]} 19. Bd2 {[%emt 0:00:21]} Ra8 {[%emt 0:06:04]} 20. Na3 {[%emt 0:02:33]} Nb8 {[%emt 0:00:32]} 21. Nb5 {[%emt 0:01:03]} Bf8 {[%emt 0:00:40]} 22. Nd6+ {[%emt 0:01:32]} Bxd6 {[%emt 0:01:17]} 23. exd6 {[%emt 0:00:37]} Nc6 {[%emt 0:00:07]} 24. Bb5 {[%emt 0:00:18]} Bd7 {[%emt 0:00:44]} 25. Ne5 {[%emt 0:00:19]} Nxe5 {[%emt 0:00:07]} 26. Qxe5 {[%emt 0:00:51]} 1/2-1/2

[Event "Eurasia Open Cup 2019"]
[Site "Ekaterinburg"]
[Date "2019.08.01"]
[Round "2.45"]
[White "Goncharov, Konstantin"]
[Black "Matsenko, Andrei"]
[Result "0-1"]
[ECO "B22"]
[WhiteElo "1891"]
[BlackElo "2293"]
[Annotator "NA"]
[PlyCount "82"]
[EventDate "2019.07.31"]
[EventType "swiss"]
[EventCountry "RUS"]
[SourceTitle "playchess.com"]
[Source "ChessBase"]
[SourceQuality "1"]
[TimeControl "5400+30"]

1. e4 {[%emt 0:00:00]} c5 {[%emt 0:00:00]} 2. c3 {[%emt 0:00:00]} Nf6 {[%emt 0:00:00]} 3. e5 {[%emt 0:00:24]} Nd5 {[%emt 0:00:00]} 4. Bc4 {[%emt 0:00:40]} Nb6 {[%emt 0:00:12]} 5. Bb3 {[%emt 0:00:15]} c4 {[%emt 0:00:00]} 6. Bc2 {[%emt 0:00:10]} Nc6 {[%emt 0:00:11]} 7. f4 {[%emt 0:01:15]} d6 {[%emt 0:00:15]} 8. exd6 {[%emt 0:00:41]} Qxd6 {[%emt 0:00:00]} 9. d4 {[%emt 0:01:09]} cxd3 {[%emt 0:00:06]} 10. Qxd3 {[%emt 0:00:00]} Qc7 {[%emt 0:06:54]} 11. Nf3 {[%emt 0:01:03]} g6 {[%emt 0:01:41]} 12. Be3 {[%emt 0:01:07]} Bf5 {[%emt 0:02:03]} 13. Qe2 {[%emt 0:01:04]} Bxc2 {[%emt 0:01:01]} 14. Qxc2 {[%emt 0:00:22]} Nd5 {[%emt 0:00:53]} 15. Qd2 {[%emt 0:01:51]} Rd8 {[%emt 0:01:31]} 16. Nd4 {[%emt 0:00:51]} Nxe3 {[%emt 0:00:10]} 17. Qxe3 {[%emt 0:00:29]} Nxd4 {[%emt 0:00:08]} 18. cxd4 {[%emt 0:00:55]} Bg7 {[%emt 0:00:13]} 19. Nc3 {[%emt 0:01:10]} Bxd4 {[%emt 0:00:41]} 20. Qf3 {[%emt 0:01:03]} O-O {[%emt 0:00:27]} 21. O-O-O {[%emt 0:03:17]} Bxc3 {[%emt 0:00:28]} 22. bxc3 {[%emt 0:00:14]} Rc8 {[%emt 0:01:08]} 23. Kc2 {[%emt 0:00:47]} b5 {[%emt 0:00:48]} 24. Rd4 {[%emt 0:01:27]} a5 {[%emt 0:01:40]} 25. a3 {[%emt 0:03:48]} Qc5 {[%emt 0:01:04]} 26. Kb2 {[%emt 0:00:34]} e6 {[%emt 0:01:30]} 27. g4 {[%emt 0:00:31]} Rb8 {[%emt 0:04:20]} 28. Qe4 {[%emt 0:06:39]} Rfc8 {[%emt 0:02:55]} 29. Rc1 {[%emt 0:00:40]} Qc7 {[%emt 0:00:00]} 30. Rc2 {[%emt 0:00:53]} Rb6 {[%emt 0:01:07]} 31. Kb3 {[%emt 0:01:25]} Rd6 {[%emt 0:04:58]} 32. Qd3 {[%emt 0:08:11]} Rxd4 {[%emt 0:02:15]} 33. Qxd4 {[%emt 0:03:42]} Qc4+ {[%emt 0:00:20]} 34. Kb2 {[%emt 0:00:22]} Qxd4 {[%emt 0:00:22]} 35. cxd4 {[%emt 0:00:49]} Rxc2+ {[%emt 0:00:13]} 36. Kxc2 {[%emt 0:00:45]} Kf8 {[%emt 0:00:03]} 37. Kb3 {[%emt 0:00:12]} Ke7 {[%emt 0:00:02]} 38. a4 {[%emt 0:01:11]} bxa4+ {[%emt 0:00:05]} 39. Kxa4 {[%emt 0:00:00]} Kd6 {[%emt 0:00:09]} 40. Kxa5 {[%emt 0:00:08]} Kd5 {[%emt 0:00:03]} 41. Kb5 {[%emt 0:00:47]} Kxd4 {[%emt 0:00:03]} 0-1

[Event "Eurasia Open Cup 2019"]
[Site "Ekaterinburg"]
[Date "2019.08.02"]
[Round "3.3"]
[White "Kopylov, Alexander A."]
[Black "Pridorozhni, Aleksei"]
[Result "0-1"]
[ECO "A07"]
[WhiteElo "2410"]
[BlackElo "2586"]
[Annotator "ChessBase"]
[PlyCount "120"]
[EventDate "2019.07.31"]
[EventType "swiss"]
[EventCountry "RUS"]
[SourceTitle "playchess.com"]
[Source "ChessBase"]
[SourceQuality "1"]
[TimeControl "5400+30"]

1. Nf3 {[%emt 0:00:00]} d5 {[%emt 0:00:00]} 2. g3 {[%emt 0:00:05]} Nc6 {[%emt 0:00:10]} 3. Bg2 {[%emt 0:00:34]} e5 {[%emt 0:03:26]} 4. d3 {[%emt 0:00:28]} Nf6 {[%emt 0:00:14]} 5. O-O {[%emt 0:00:15]} Be7 {[%emt 0:00:11]} 6. c3 {[%emt 0:00:12]} a5 {[%emt 0:00:27]} 7. Qc2 {[%emt 0:02:41]} O-O {[%emt 0:00:42]} 8. e4 {[%emt 0:08:06]} Re8 {[%emt 0:00:45]} 9. Re1 {[%emt 0:00:15]} Bf8 {[%emt 0:00:36]} 10. a4 {[%emt 0:02:58]} h6 {[%emt 0:07:49]} 11. exd5 {[%emt 0:16:25]} Nxd5 {[%emt 0:02:33]} 12. Nbd2 {[%emt 0:07:26]} g6 {[%emt 0:01:40]} 13. Nc4 {[%emt 0:00:09]} Bg7 {[%emt 0:02:19]} 14. Qb3 {[%emt 0:07:07]} Nb6 {[%emt 0:02:38]} 15. Nxb6 {[%emt 0:00:47]} cxb6 {[%emt 0:05:01]} 16. Be3 {[%emt 0:04:52]} Ra6 {[%emt 0:00:33]} 17. Rad1 {[%emt 0:00:26]} Be6 {[%emt 0:07:13]} 18. Qc2 {[%emt 0:01:50]} Bd5 {[%emt 0:00:44]} 19. d4 {[%emt 0:01:06]} exd4 {[%emt 0:07:16]} 20. Nxd4 {[%emt 0:07:44]} Nxd4 {[%emt 0:01:19]} 21. Bxd4 {[%emt 0:01:13]} Rxe1+ {[%emt 0:00:21]} 22. Rxe1 {[%emt 0:00:37]} Bxg2 {[%emt 0:00:29]} 23. Kxg2 {[%emt 0:00:02]} Bxd4 {[%emt 0:03:04]} 24. Rd1 {[%emt 0:03:07]} b5 {[%emt 0:03:39]} 25. Rxd4 {[%emt 0:03:27]} Rd6 {[%emt 0:01:04]} 26. Rxd6 {[%emt 0:04:23]} Qxd6 {[%emt 0:00:56]} 27. Qe4 {[%emt 0:01:46]} Qd7 {[%emt 0:00:03]} 28. axb5 {[%emt 0:05:26]} Qxb5 {[%emt 0:00:15]} 29. Qd4 {[%emt 0:07:22]} a4 {[%emt 0:00:22]} 30. Qd8+ {[%emt 0:00:10]} Kh7 {[%emt 0:01:54]} 31. Qf6 {[%emt 0:03:53]} Qd5+ {[%emt 0:00:08]} 32. Qf3 {[%emt 0:00:31]} Qd7 {[%emt 0:00:20]} 33. Qf6 {[%emt 0:00:38]} b5 {[%emt 0:00:09]} 34. Qe5 {[%emt 0:01:26]} Qc6+ {[%emt 0:00:03]} 35. Kg1 {[%emt 0:01:57]} Qc4 {[%emt 0:00:28]} 36. h4 {[%emt 0:00:07]} h5 {[%emt 0:00:33]} 37. Kg2 {[%emt 0:00:35]} Qb3 {[%emt 0:00:11]} 38. Qf6 {[%emt 0:00:38]} Qd5+ {[%emt 0:00:30]} 39. Qf3 {[%emt 0:00:43]} Qd7 {[%emt 0:00:14]} 40. Qf6 {[%emt 0:00:44]} Kg8 {[%emt 0:00:18]} 41. Qe5 {[%emt 0:00:30]} Qc6+ {[%emt 0:00:10]} 42. Kg1 {[%emt 0:00:19]} Kf8 {[%emt 0:00:09]} 43. Kf1 {[%emt 0:00:52]} Qc4+ {[%emt 0:00:05]} 44. Ke1 {[%emt 0:02:34]} Qd3 {[%emt 0:00:23]} 45. Qc5+ {[%emt 0:01:13]} Kg7 {[%emt 0:00:39]} 46. Qb4 {[%emt 0:01:23]} Kf6 {[%emt 0:01:21]} 47. Qf4+ {[%emt 0:00:30]} Ke6 {[%emt 0:00:18]} 48. Qd2 {[%emt 0:00:45]} Qxd2+ {[%emt 0:00:11]} 49. Kxd2 {[%emt 0:00:14]} Kd5 {[%emt 0:02:35]} 50. Kd3 {[%emt 0:00:05]} Kc5 {[%emt 0:00:12]} 51. Kd2 {[%emt 0:00:05]} Kc4 {[%emt 0:00:05]} 52. Kc2 {[%emt 0:01:17]} f6 {[%emt 0:00:15]} 53. f3 {[%emt 0:00:02]} g5 {[%emt 0:00:08]} 54. hxg5 {[%emt 0:00:54]} fxg5 {[%emt 0:00:07]} 55. Kd2 {[%emt 0:02:07]} h4 {[%emt 0:00:05]} 56. gxh4 {[%emt 0:00:02]} gxh4 {[%emt 0:00:38]} 57. Ke3 {[%emt 0:00:22]} h3 {[%emt 0:00:06]} 58. Kf2 {[%emt 0:00:07]} h2 {[%emt 0:00:18]} 59. Kg2 {[%emt 0:00:07]} Kb3 {[%emt 0:00:15]} 60. f4 {[%emt 0:00:03]} Kxb2 {[%emt 0:00:04]} 0-1

[Event "Eurasia Open Cup 2019"]
[Site "Ekaterinburg"]
[Date "2019.08.02"]
[Round "3.4"]
[White "Shaposhnikov, Evgeny"]
[Black "Nesterov, Arseniy"]
[Result "1/2-1/2"]
[ECO "A20"]
[WhiteElo "2575"]
[BlackElo "2451"]
[Annotator "ChessBase"]
[PlyCount "133"]
[EventDate "2019.07.31"]
[EventType "swiss"]
[EventCountry "RUS"]
[SourceTitle "playchess.com"]
[Source "ChessBase"]
[SourceQuality "1"]
[TimeControl "5400+30"]

1. c4 {[%emt 0:00:00]} e5 {[%emt 0:00:00]} 2. g3 {[%emt 0:00:00]} Nf6 {[%emt 0:02:49]} 3. Bg2 {[%emt 0:00:04]} c6 {[%emt 0:01:32]} 4. Nf3 {[%emt 0:00:13]} e4 {[%emt 0:00:16]} 5. Nd4 {[%emt 0:00:00]} d5 {[%emt 0:00:21]} 6. cxd5 {[%emt 0:00:58]} cxd5 {[%emt 0:00:04]} 7. d3 {[%emt 0:03:27]} Bc5 {[%emt 0:05:58]} 8. Nb3 {[%emt 0:01:34]} Bb6 {[%emt 0:00:32]} 9. O-O {[%emt 0:03:00]} O-O {[%emt 0:00:51]} 10. Bg5 {[%emt 0:01:28]} h6 {[%emt 0:04:11]} 11. Bxf6 {[%emt 0:00:43]} Qxf6 {[%emt 0:00:04]} 12. Nc3 {[%emt 0:00:16]} Rd8 {[%emt 0:03:16]} 13. dxe4 {[%emt 0:06:54]} dxe4 {[%emt 0:00:11]} 14. Qc1 {[%emt 0:01:37]} e3 {[%emt 0:09:34]} 15. fxe3 {[%emt 0:00:17]} Qe5 {[%emt 0:00:00]} 16. Nd5 {[%emt 0:00:46]} Nc6 {[%emt 0:01:07]} 17. Nxb6 {[%emt 0:07:35]} axb6 {[%emt 0:00:39]} 18. Qc3 {[%emt 0:00:33]} Qxc3 {[%emt 0:01:06]} 19. bxc3 {[%emt 0:03:34]} Be6 {[%emt 0:00:18]} 20. Nd4 {[%emt 0:01:04]} Bxa2 {[%emt 0:01:28]} 21. Bxc6 {[%emt 0:03:09]} bxc6 {[%emt 0:00:34]} 22. Nxc6 {[%emt 0:00:17]} Re8 {[%emt 0:02:19]} 23. Kf2 {[%emt 0:01:40]} Bc4 {[%emt 0:01:41]} 24. Rfb1 {[%emt 0:07:43]} Rxa1 {[%emt 0:01:38]} 25. Rxa1 {[%emt 0:00:02]} Bd5 {[%emt 0:00:56]} 26. Nd4 {[%emt 0:03:21]} Rc8 {[%emt 0:02:01]} 27. Ra3 {[%emt 0:00:33]} g6 {[%emt 0:00:26]} 28. Ke1 {[%emt 0:00:27]} Rc5 {[%emt 0:01:11]} 29. Kd2 {[%emt 0:01:06]} Bc4 {[%emt 0:00:40]} 30. Ra8+ {[%emt 0:02:39]} Kg7 {[%emt 0:00:36]} 31. Rb8 {[%emt 0:02:19]} b5 {[%emt 0:00:00]} 32. Rb6 {[%emt 0:06:20]} Rh5 {[%emt 0:02:15]} 33. h4 {[%emt 0:06:44]} Re5 {[%emt 0:00:49]} 34. Nc2 {[%emt 0:05:36]} Rd5+ {[%emt 0:05:08]} 35. Ke1 {[%emt 0:03:06]} Re5 {[%emt 0:00:04]} 36. Rd6 {[%emt 0:09:26]} Bb3 {[%emt 0:03:04]} 37. Nd4 {[%emt 0:00:33]} Bc4 {[%emt 0:03:54]} 38. Kf2 {[%emt 0:00:47]} Kf8 {[%emt 0:00:11]} 39. Rd8+ {[%emt 0:00:03]} Kg7 {[%emt 0:01:52]} 40. Rd6 {[%emt 0:00:41]} Kf8 {[%emt 0:00:21]} 41. Rb6 {[%emt 0:02:21]} Kg7 {[%emt 0:00:05]} 42. Nf3 {[%emt 0:00:30]} Rc5 {[%emt 0:00:32]} 43. Ke1 {[%emt 0:01:51]} Rc7 {[%emt 0:00:15]} 44. e4 {[%emt 0:00:41]} Ra7 {[%emt 0:04:26]} 45. Rc6 {[%emt 0:00:30]} Ra3 {[%emt 0:00:13]} 46. Nd4 {[%emt 0:01:39]} Rxc3 {[%emt 0:00:38]} 47. Nxb5 {[%emt 0:03:24]} Rb3 {[%emt 0:01:46]} 48. Nd4 {[%emt 0:00:02]} Rb4 {[%emt 0:01:59]} 49. Kf2 {[%emt 0:00:11]} Ba2 {[%emt 0:00:41]} 50. Rd6 {[%emt 0:00:05]} Rb7 {[%emt 0:00:33]} 51. Ra6 {[%emt 0:00:54]} Bc4 {[%emt 0:00:53]} 52. Rd6 {[%emt 0:00:53]} Re7 {[%emt 0:02:56]} 53. Kf3 {[%emt 0:00:14]} h5 {[%emt 0:00:45]} 54. Rc6 {[%emt 0:01:29]} Ba2 {[%emt 0:01:33]} 55. Kf4 {[%emt 0:00:16]} Ra7 {[%emt 0:01:16]} 56. e3 {[%emt 0:00:00]} Ra4 {[%emt 0:00:00]} 57. Rc7 {[%emt 0:00:51]} Kh6 {[%emt 0:06:05]} 58. Nb5 {[%emt 0:01:50]} Be6 {[%emt 0:05:03]} 59. Nd6 {[%emt 0:01:27]} Ra1 {[%emt 0:03:32]} 60. Ke5 {[%emt 0:00:56]} Rf1 {[%emt 0:02:44]} 61. Ra7 {[%emt 0:00:39]} Rf3 {[%emt 0:00:18]} 62. Ra8 {[%emt 0:03:06]} Rxg3 {[%emt 0:00:20]} 63. Ne8 {[%emt 0:01:32]} Rh3 {[%emt 0:00:46]} 64. Nc7 {[%emt 0:01:19]} Rxh4 {[%emt 0:01:33]} 65. Nxe6 {[%emt 0:00:22]} fxe6 {[%emt 0:02:54]} 66. Kf6 {[%emt 0:00:39]} Kh7 {[%emt 0:01:53]} 67. e5 {[%emt 0:01:05]} 1/2-1/2